[Event "Late-Titled-Tuesday-Blitz-January-23-2024"]
[Site "Chess.com"]
[Date "2024.01.23"]
[Round "9"]
[White "DeArron_Fox"]
[Black "traviscottofficial"]
[Result "1-0"]
[WhiteElo "2459"]
[BlackElo "2523"]
[TimeControl "180+1"]
[EndTime "15:41:44 PST"]
[Termination "DeArron_Fox won by resignation"]

1. d4 {[%clk 0:03:00.9]} 1... Nf6 {[%clk 0:01:33.6]} 2. c4 {[%clk 0:02:59.7]}
2... g6 {[%clk 0:01:33.4]} 3. Nc3 {[%clk 0:02:59.9]} 3... Bg7 {[%clk 0:01:34]}
4. e4 {[%clk 0:03:00.5]} 4... O-O {[%clk 0:01:34.9]} 5. f3 {[%clk 0:03:00.7]}
5... d6 {[%clk 0:01:35.5]} 6. Be3 {[%clk 0:03:01.1]} 6... c5 {[%clk 0:01:34.9]}
7. Nge2 {[%clk 0:03:01.6]} 7... Nc6 {[%clk 0:01:34.4]} 8. d5 {[%clk 0:03:02]}
8... Ne5 {[%clk 0:01:33.8]} 9. Ng3 {[%clk 0:03:02.6]} 9... e6 {[%clk 0:01:14.3]}
10. Be2 {[%clk 0:03:02.1]} 10... a6 {[%clk 0:01:11.8]} 11. a4 {[%clk 0:02:07.3]}
11... exd5 {[%clk 0:00:59.2]} 12. cxd5 {[%clk 0:02:08.2]} 12... Re8 {[%clk
0:00:56.5]} 13. O-O {[%clk 0:02:06.9]} 13... Qa5 {[%clk 0:00:52.8]} 14. Nh1
{[%clk 0:01:53.8]} 14... Bd7 {[%clk 0:00:44.8]} 15. Nf2 {[%clk 0:01:52.9]} 15...
b5 {[%clk 0:00:43.9]} 16. axb5 {[%clk 0:01:52.6]} 16... Qb4 {[%clk 0:00:43.1]}
17. f4 {[%clk 0:01:26.9]} 17... Nc4 {[%clk 0:00:40.6]} 18. Bxc4 {[%clk
0:01:26.8]} 18... Qxc4 {[%clk 0:00:40.6]} 19. Ra4 {[%clk 0:01:27.4]} 19... axb5
{[%clk 0:00:19.1]} 20. Rxc4 {[%clk 0:01:27]} 20... bxc4 {[%clk 0:00:20]} 21. e5
{[%clk 0:01:21.3]} 21... dxe5 {[%clk 0:00:19.9]} 22. fxe5 {[%clk 0:01:21.6]}
22... Rxe5 {[%clk 0:00:20.4]} 23. Bxc5 {[%clk 0:01:22.2]} 23... Rae8 {[%clk
0:00:18.3]} 24. Bd4 {[%clk 0:01:20.2]} 24... R5e7 {[%clk 0:00:18.5]} 25. h3
{[%clk 0:01:16.7]} 25... Bf5 {[%clk 0:00:17.2]} 26. Ng4 {[%clk 0:01:01]} 26...
Nxg4 {[%clk 0:00:13.3]} 27. hxg4 {[%clk 0:01:00.8]} 27... Bd3 {[%clk 0:00:13.5]}
28. Bxg7 {[%clk 0:00:55.9]} 28... Kxg7 {[%clk 0:00:10.8]} 29. g5 {[%clk
0:00:46.1]} 29... Bxf1 {[%clk 0:00:10.1]} 30. Kxf1 {[%clk 0:00:47]} 30... Re5
{[%clk 0:00:08.7]} 31. Qd4 {[%clk 0:00:46.7]} 31... Kg8 {[%clk 0:00:09]} 32. d6
{[%clk 0:00:42.6]} 32... Rf5+ {[%clk 0:00:09.1]} 33. Kg1 {[%clk 0:00:42.7]}
33... Rxg5 {[%clk 0:00:06.6]} 34. Ne4 {[%clk 0:00:40.3]} 1-0

[Event "Late-Titled-Tuesday-Blitz-January-23-2024"]
[Site "Chess.com"]
[Date "2024.01.23"]
[Round "9"]
[White "LUISMIGUELOV"]
[Black "VitaliyChayka"]
[Result "1-0"]
[WhiteElo "2188"]
[BlackElo "2395"]
[TimeControl "180+1"]
[EndTime "15:41:46 PST"]
[Termination "LUISMIGUELOV won by resignation"]

1. d4 {[%clk 0:02:55.6]} 1... d6 {[%clk 0:02:58.7]} 2. c3 {[%clk 0:02:56]} 2...
e5 {[%clk 0:02:56.8]} 3. dxe5 {[%clk 0:02:54.6]} 3... dxe5 {[%clk 0:02:56.2]} 4.
Qxd8+ {[%clk 0:02:54.2]} 4... Kxd8 {[%clk 0:02:57.1]} 5. e4 {[%clk 0:02:50.2]}
5... Be6 {[%clk 0:02:53.4]} 6. Nd2 {[%clk 0:02:48.6]} 6... Bc5 {[%clk
0:02:42.8]} 7. Bc4 {[%clk 0:02:48]} 7... Bxc4 {[%clk 0:02:32.1]} 8. Nxc4 {[%clk
0:02:46.8]} 8... f6 {[%clk 0:02:32.7]} 9. Be3 {[%clk 0:02:45.5]} 9... Bxe3
{[%clk 0:02:31.4]} 10. Nxe3 {[%clk 0:02:44.6]} 10... c6 {[%clk 0:02:31.5]} 11.
O-O-O+ {[%clk 0:02:44]} 11... Nd7 {[%clk 0:02:30.1]} 12. Nf5 {[%clk 0:02:41.8]}
12... g6 {[%clk 0:01:26]} 13. Nd6 {[%clk 0:02:39.9]} 13... Ke7 {[%clk
0:01:23.1]} 14. Nxb7 {[%clk 0:02:39.5]} 14... Nh6 {[%clk 0:01:19.2]} 15. f3
{[%clk 0:02:36.6]} 15... a5 {[%clk 0:01:15.2]} 16. Ne2 {[%clk 0:02:19.4]} 16...
Nf7 {[%clk 0:01:14.3]} 17. Rxd7+ {[%clk 0:01:41.5]} 17... Kxd7 {[%clk
0:01:12.1]} 18. Nc5+ {[%clk 0:01:41.7]} 18... Kc7 {[%clk 0:01:08.3]} 19. Kc2
{[%clk 0:01:38.3]} 19... Kd6 {[%clk 0:00:43.4]} 20. Nb3 {[%clk 0:01:28.6]} 20...
a4 {[%clk 0:00:41.8]} 21. Rd1+ {[%clk 0:01:29]} 21... Ke7 {[%clk 0:00:40]} 22.
Nc5 {[%clk 0:01:21.1]} 22... Rhe8 {[%clk 0:00:39.5]} 23. Rd7+ {[%clk 0:01:17.9]}
23... Kf8 {[%clk 0:00:38.7]} 24. Rc7 {[%clk 0:01:13.4]} 24... Rec8 {[%clk
0:00:31.1]} 25. Rxc8+ {[%clk 0:01:04.9]} 25... Rxc8 {[%clk 0:00:30.2]} 26. Nxa4
{[%clk 0:01:05.5]} 26... Ke7 {[%clk 0:00:23.9]} 27. b4 {[%clk 0:01:05.3]} 27...
f5 {[%clk 0:00:23]} 28. Ng3 {[%clk 0:01:01]} 28... Kf6 {[%clk 0:00:20.1]} 29.
Nc5 {[%clk 0:01:00]} 29... Rd8 {[%clk 0:00:19.1]} 30. a4 {[%clk 0:00:58.8]}
30... h5 {[%clk 0:00:17.5]} 31. h4 {[%clk 0:00:57]} 31... Nd6 {[%clk 0:00:15.2]}
32. a5 {[%clk 0:00:55.1]} 32... Nc4 {[%clk 0:00:12.3]} 33. Nf1 {[%clk
0:00:49.9]} 33... g5 {[%clk 0:00:09.9]} 34. hxg5+ {[%clk 0:00:48.9]} 34... Kxg5
{[%clk 0:00:10.8]} 35. Ne6+ {[%clk 0:00:47.7]} 35... Kf6 {[%clk 0:00:08.4]} 36.
Nxd8 {[%clk 0:00:47.3]} 36... Nd6 {[%clk 0:00:08.6]} 37. exf5 {[%clk 0:00:44.2]}
1-0

[Event "Late-Titled-Tuesday-Blitz-January-23-2024"]
[Site "Chess.com"]
[Date "2024.01.23"]
[Round "9"]
[White "KorolDimitriy75"]
[Black "Fernando_Offermann"]
[Result "0-1"]
[WhiteElo "2356"]
[BlackElo "2494"]
[TimeControl "180+1"]
[EndTime "15:41:49 PST"]
[Termination "Fernando_Offermann won on time"]

1. d4 {[%clk 0:03:00.9]} 1... Nf6 {[%clk 0:02:57.5]} 2. c4 {[%clk 0:03:00.7]}
2... g6 {[%clk 0:02:57.6]} 3. Nc3 {[%clk 0:03:01.2]} 3... Bg7 {[%clk 0:02:57.4]}
4. e4 {[%clk 0:03:01.4]} 4... d6 {[%clk 0:02:57.6]} 5. Nf3 {[%clk 0:03:02.3]}
5... O-O {[%clk 0:02:57.3]} 6. Be2 {[%clk 0:03:03.2]} 6... e5 {[%clk 0:02:55.9]}
7. dxe5 {[%clk 0:03:04.1]} 7... dxe5 {[%clk 0:02:55.8]} 8. Qxd8 {[%clk 0:03:05]}
8... Rxd8 {[%clk 0:02:55.9]} 9. Bg5 {[%clk 0:03:05.4]} 9... Nbd7 {[%clk
0:02:54.4]} 10. O-O-O {[%clk 0:03:04.2]} 10... Rf8 {[%clk 0:02:51.9]} 11. Ne1
{[%clk 0:03:03.7]} 11... c6 {[%clk 0:02:51.7]} 12. Nc2 {[%clk 0:02:48.9]} 12...
Nc5 {[%clk 0:02:46.9]} 13. f3 {[%clk 0:02:48.5]} 13... Ne6 {[%clk 0:02:46.5]}
14. Be3 {[%clk 0:02:49.1]} 14... Nd7 {[%clk 0:02:44.3]} 15. Rd2 {[%clk
0:02:47.9]} 15... f5 {[%clk 0:02:43]} 16. Rhd1 {[%clk 0:02:45.3]} 16... Nf6
{[%clk 0:02:41.9]} 17. c5 {[%clk 0:02:27.8]} 17... Re8 {[%clk 0:02:40.7]} 18.
Bc4 {[%clk 0:02:01]} 18... Kh8 {[%clk 0:02:32.7]} 19. b4 {[%clk 0:01:33.7]}
19... h5 {[%clk 0:02:30.9]} 20. Kb2 {[%clk 0:01:33]} 20... fxe4 {[%clk
0:02:17.4]} 21. Nxe4 {[%clk 0:01:32]} 21... Nd5 {[%clk 0:02:06.1]} 22. Bxd5
{[%clk 0:01:26.7]} 22... cxd5 {[%clk 0:02:06.2]} 23. Rxd5 {[%clk 0:01:27.6]}
23... Nf4 {[%clk 0:02:04.2]} 24. R5d2 {[%clk 0:01:02.8]} 24... Be6 {[%clk
0:02:00.6]} 25. Ng5 {[%clk 0:00:41.1]} 25... Bf5 {[%clk 0:01:53.2]} 26. Ne4
{[%clk 0:00:17.8]} 26... a5 {[%clk 0:01:43.1]} 27. a3 {[%clk 0:00:17.6]} 27...
axb4 {[%clk 0:01:43.3]} 28. axb4 {[%clk 0:00:18.5]} 28... Be6 {[%clk 0:01:43.6]}
29. g3 {[%clk 0:00:14.1]} 29... Nh3 {[%clk 0:01:31.5]} 30. Rd6 {[%clk
0:00:13.3]} 30... Bf8 {[%clk 0:01:27.6]} 31. Rb6 {[%clk 0:00:13.2]} 31... Ra2+
{[%clk 0:01:25.7]} 32. Kc3 {[%clk 0:00:13.1]} 32... Ra7 {[%clk 0:01:11.1]} 33.
b5 {[%clk 0:00:11.9]} 33... Bf5 {[%clk 0:01:04.3]} 34. Nb4 {[%clk 0:00:10.8]}
34... Ra3+ {[%clk 0:01:03.5]} 35. Kd2 {[%clk 0:00:08.5]} 35... Rd8+ {[%clk
0:01:03.2]} 36. Nd6 {[%clk 0:00:06.3]} 36... e4 {[%clk 0:01:00.2]} 37. f4 {[%clk
0:00:03.9]} 37... Bg7 {[%clk 0:00:59.8]} 38. Rc1 {[%clk 0:00:03.5]} 38... Rb3
{[%clk 0:00:58.4]} 39. Nd5 {[%clk 0:00:03]} 39... Rd3+ {[%clk 0:00:58]} 40. Ke2
{[%clk 0:00:02.3]} 40... Rxd5 {[%clk 0:00:58.3]} 41. Rxb7 {[%clk 0:00:02.4]}
41... Be6 {[%clk 0:00:55.7]} 0-1

[Event "Late-Titled-Tuesday-Blitz-January-23-2024"]
[Site "Chess.com"]
[Date "2024.01.23"]
[Round "9"]
[White "finec2"]
[Black "Arteler"]
[Result "0-1"]
[WhiteElo "2202"]
[BlackElo "2514"]
[TimeControl "180+1"]
[EndTime "15:41:49 PST"]
[Termination "Arteler won on time"]

1. d4 {[%clk 0:02:58.8]} 1... c5 {[%clk 0:02:59.2]} 2. d5 {[%clk 0:02:47.6]}
2... f5 {[%clk 0:02:58.6]} 3. g3 {[%clk 0:02:36.5]} 3... Nf6 {[%clk 0:02:58.5]}
4. Bg2 {[%clk 0:02:36.3]} 4... g6 {[%clk 0:02:58.5]} 5. c4 {[%clk 0:02:32.9]}
5... Bg7 {[%clk 0:02:58.9]} 6. Nc3 {[%clk 0:02:33]} 6... O-O {[%clk 0:02:59.5]}
7. Nf3 {[%clk 0:02:23.7]} 7... d6 {[%clk 0:02:59.7]} 8. O-O {[%clk 0:02:22.9]}
8... Na6 {[%clk 0:03:00]} 9. Re1 {[%clk 0:02:16]} 9... Nc7 {[%clk 0:03:00.5]}
10. e4 {[%clk 0:02:05.3]} 10... fxe4 {[%clk 0:03:00.4]} 11. Ng5 {[%clk
0:02:04.1]} 11... b5 {[%clk 0:03:01.2]} 12. cxb5 {[%clk 0:01:57.8]} 12... Bf5
{[%clk 0:02:39.2]} 13. Ngxe4 {[%clk 0:01:54.1]} 13... Nxe4 {[%clk 0:02:39.2]}
14. Nxe4 {[%clk 0:01:52]} 14... Nxb5 {[%clk 0:02:38]} 15. a4 {[%clk 0:01:18.9]}
15... Nd4 {[%clk 0:02:37.8]} 16. Ra3 {[%clk 0:01:18.9]} 16... h6 {[%clk
0:02:32.9]} 17. Rae3 {[%clk 0:01:12.4]} 17... Rb8 {[%clk 0:02:20.5]} 18. b3
{[%clk 0:01:06.1]} 18... Qe8 {[%clk 0:02:01]} 19. Nxd6 {[%clk 0:00:18.5]} 19...
Qd7 {[%clk 0:02:00.9]} 20. Nxf5 {[%clk 0:00:17.9]} 20... Qxf5 {[%clk 0:02:01]}
21. Rf1 {[%clk 0:00:14.2]} 21... Qf7 {[%clk 0:01:44.7]} 22. Ba3 {[%clk
0:00:11.4]} 22... Rfc8 {[%clk 0:01:40.3]} 23. Rfe1 {[%clk 0:00:10.3]} 23... Rf8
{[%clk 0:01:39]} 24. Qd2 {[%clk 0:00:08.6]} 24... Nxb3 {[%clk 0:01:37.3]} 25.
Qd1 {[%clk 0:00:07.3]} 25... Qxf2+ {[%clk 0:01:35]} 26. Kh1 {[%clk 0:00:07.6]}
26... Bd4 {[%clk 0:01:30.8]} 27. Rxe7 {[%clk 0:00:07]} 27... Rf6 {[%clk
0:00:56.7]} 28. Rf1 {[%clk 0:00:06.5]} 28... Qd2 {[%clk 0:00:53.8]} 29. Qxd2
{[%clk 0:00:04.9]} 29... Nxd2 {[%clk 0:00:54.7]} 30. Rxf6 {[%clk 0:00:04.4]}
30... Bxf6 {[%clk 0:00:55.3]} 31. Re1 {[%clk 0:00:03.3]} 31... Bd4 {[%clk
0:00:52.8]} 32. Rd1 {[%clk 0:00:02.6]} 32... Nc4 {[%clk 0:00:52.7]} 33. Bc1
{[%clk 0:00:01.9]} 33... Rb1 {[%clk 0:00:50.8]} 34. Bf3 {[%clk 0:00:02.1]} 34...
Ne5 {[%clk 0:00:49.3]} 35. Be2 {[%clk 0:00:01.8]} 35... g5 {[%clk 0:00:45.6]}
0-1

[Event "Late-Titled-Tuesday-Blitz-January-23-2024"]
[Site "Chess.com"]
[Date "2024.01.23"]
[Round "9"]
[White "JaackCamel"]
[Black "NtcPou"]
[Result "0-1"]
[WhiteElo "2144"]
[BlackElo "2022"]
[TimeControl "180+1"]
[EndTime "15:41:50 PST"]
[Termination "NtcPou won by resignation"]

1. d4 {[%clk 0:03:00.9]} 1... d5 {[%clk 0:02:57.2]} 2. c4 {[%clk 0:03:00.6]}
2... c6 {[%clk 0:02:56.9]} 3. cxd5 {[%clk 0:02:59.9]} 3... cxd5 {[%clk
0:02:56.4]} 4. Bf4 {[%clk 0:03:00.1]} 4... Nc6 {[%clk 0:02:53]} 5. e3 {[%clk
0:02:59.9]} 5... Nf6 {[%clk 0:02:52.6]} 6. Nc3 {[%clk 0:02:58.9]} 6... a6 {[%clk
0:02:48.6]} 7. Bd3 {[%clk 0:02:58]} 7... Bg4 {[%clk 0:02:47.6]} 8. Qb3 {[%clk
0:02:53.3]} 8... Na5 {[%clk 0:02:46.5]} 9. Qa4+ {[%clk 0:02:52.2]} 9... Bd7
{[%clk 0:02:46]} 10. Qc2 {[%clk 0:02:51.3]} 10... Rc8 {[%clk 0:02:45.5]} 11. Nf3
{[%clk 0:02:45.9]} 11... e6 {[%clk 0:02:42.6]} 12. O-O {[%clk 0:02:44.6]} 12...
Be7 {[%clk 0:02:42.4]} 13. h3 {[%clk 0:02:44.3]} 13... O-O {[%clk 0:02:40.6]}
14. Rfc1 {[%clk 0:02:40.9]} 14... b5 {[%clk 0:02:39.7]} 15. a3 {[%clk
0:02:38.9]} 15... Nc4 {[%clk 0:02:36.1]} 16. Qe2 {[%clk 0:02:36.6]} 16... Qb6
{[%clk 0:02:29.6]} 17. Ne5 {[%clk 0:02:33.3]} 17... Rfd8 {[%clk 0:02:26.7]} 18.
Kh1 {[%clk 0:02:05.7]} 18... Be8 {[%clk 0:02:25.9]} 19. Kg1 {[%clk 0:02:04.6]}
19... a5 {[%clk 0:02:20.9]} 20. b3 {[%clk 0:01:59]} 20... Nxa3 {[%clk
0:02:18.8]} 21. Nd1 {[%clk 0:01:44.3]} 21... b4 {[%clk 0:02:10.6]} 22. Nb2
{[%clk 0:01:38.4]} 22... Bb5 {[%clk 0:01:57.1]} 23. Na4 {[%clk 0:01:07.5]} 23...
Bxa4 {[%clk 0:01:55.6]} 24. bxa4 {[%clk 0:01:07.3]} 24... Rc3 {[%clk 0:01:52.3]}
25. Bb5 {[%clk 0:01:05.4]} 25... Rdc8 {[%clk 0:01:45.5]} 26. Rxc3 {[%clk
0:01:03.4]} 26... Rxc3 {[%clk 0:01:43.4]} 27. Bg3 {[%clk 0:00:46.3]} 27... h6
{[%clk 0:01:38.4]} 28. Kh2 {[%clk 0:00:44.3]} 28... Ne4 {[%clk 0:01:38]} 29. Bf4
{[%clk 0:00:40.6]} 29... Rc2 {[%clk 0:01:35.7]} 30. Qg4 {[%clk 0:00:37.1]} 30...
Nxf2 {[%clk 0:01:32.1]} 31. Qf3 {[%clk 0:00:31]} 31... Ne4 {[%clk 0:01:31.5]}
32. Rf1 {[%clk 0:00:28.4]} 32... Nxb5 {[%clk 0:01:28.2]} 33. Nd7 {[%clk
0:00:21.1]} 33... Qb7 {[%clk 0:01:22.1]} 34. axb5 {[%clk 0:00:19.8]} 34... Qxd7
{[%clk 0:01:20.3]} 35. Be5 {[%clk 0:00:18]} 35... Bf6 {[%clk 0:01:16.2]} 36. b6
{[%clk 0:00:17.5]} 36... Qb5 {[%clk 0:01:12.6]} 37. Bxf6 {[%clk 0:00:16.1]}
37... Nxf6 {[%clk 0:01:12.3]} 38. Qd1 {[%clk 0:00:13]} 38... b3 {[%clk
0:01:05.5]} 39. Rxf6 {[%clk 0:00:09.8]} 39... gxf6 {[%clk 0:01:04.6]} 40. Qg4+
{[%clk 0:00:09.2]} 40... Kf8 {[%clk 0:01:03.6]} 41. Qh4 {[%clk 0:00:08.4]} 41...
Ke7 {[%clk 0:00:59]} 42. Qf4 {[%clk 0:00:07.4]} 42... Qxb6 {[%clk 0:00:58.2]}
43. h4 {[%clk 0:00:07.3]} 43... Qc7 {[%clk 0:00:57.5]} 0-1

[Event "Late-Titled-Tuesday-Blitz-January-23-2024"]
[Site "Chess.com"]
[Date "2024.01.23"]
[Round "9"]
[White "Atousa"]
[Black "OPQRC"]
[Result "0-1"]
[WhiteElo "2460"]
[BlackElo "2546"]
[TimeControl "180+1"]
[EndTime "15:42:01 PST"]
[Termination "OPQRC won by resignation"]

1. e4 {[%clk 0:02:58.5]} 1... c6 {[%clk 0:02:59]} 2. d4 {[%clk 0:02:58.4]} 2...
g6 {[%clk 0:02:59]} 3. Nf3 {[%clk 0:02:58.1]} 3... Bg7 {[%clk 0:02:59.3]} 4. Nc3
{[%clk 0:02:58.5]} 4... d5 {[%clk 0:02:59.3]} 5. h3 {[%clk 0:02:59.1]} 5... dxe4
{[%clk 0:02:57.5]} 6. Nxe4 {[%clk 0:03:00]} 6... Nf6 {[%clk 0:02:57.8]} 7. Nxf6+
{[%clk 0:02:59.7]} 7... exf6 {[%clk 0:02:58.4]} 8. Bc4 {[%clk 0:02:59.4]} 8...
O-O {[%clk 0:02:58]} 9. O-O {[%clk 0:02:59.2]} 9... Nd7 {[%clk 0:02:58]} 10. c3
{[%clk 0:02:59.4]} 10... Nb6 {[%clk 0:02:56]} 11. Bb3 {[%clk 0:02:59]} 11... Bf5
{[%clk 0:02:53.7]} 12. Re1 {[%clk 0:02:58.3]} 12... Qd6 {[%clk 0:02:46.4]} 13.
Be3 {[%clk 0:02:49.1]} 13... Rfe8 {[%clk 0:02:45.2]} 14. Qd2 {[%clk 0:02:48.4]}
14... a5 {[%clk 0:02:35.4]} 15. Bf4 {[%clk 0:02:44.4]} 15... Qd7 {[%clk
0:02:30.9]} 16. a3 {[%clk 0:02:40.9]} 16... Be6 {[%clk 0:02:29.9]} 17. Qc2
{[%clk 0:02:33.3]} 17... Bd5 {[%clk 0:01:57.4]} 18. Nd2 {[%clk 0:02:27.5]} 18...
f5 {[%clk 0:01:24.5]} 19. a4 {[%clk 0:02:22]} 19... Rxe1+ {[%clk 0:01:19.8]} 20.
Rxe1 {[%clk 0:02:21.5]} 20... Re8 {[%clk 0:01:20.7]} 21. Re3 {[%clk 0:01:47.4]}
21... Rxe3 {[%clk 0:01:15.7]} 22. Bxe3 {[%clk 0:01:46.8]} 22... Bxb3 {[%clk
0:00:50.8]} 23. Qxb3 {[%clk 0:01:36.5]} 23... Nd5 {[%clk 0:00:50.9]} 24. Nc4
{[%clk 0:01:34.4]} 24... b5 {[%clk 0:00:47]} 25. Nxa5 {[%clk 0:01:22.3]} 25...
Nxe3 {[%clk 0:00:44.3]} 26. fxe3 {[%clk 0:01:20.2]} 26... Bh6 {[%clk 0:00:44.3]}
27. c4 {[%clk 0:01:11.3]} 27... f4 {[%clk 0:00:35.9]} 28. axb5 {[%clk
0:00:59.9]} 28... fxe3 {[%clk 0:00:35.5]} 29. bxc6 {[%clk 0:00:53.7]} 29... Qxd4
{[%clk 0:00:31.6]} 30. Qc3 {[%clk 0:00:31.2]} 30... Qd1+ {[%clk 0:00:17.8]} 31.
Kh2 {[%clk 0:00:29]} 31... Bf4+ {[%clk 0:00:18]} 32. g3 {[%clk 0:00:29.6]} 32...
Qe2+ {[%clk 0:00:17.8]} 33. Kg1 {[%clk 0:00:21.7]} 33... Qf2+ {[%clk 0:00:17.3]}
34. Kh1 {[%clk 0:00:22.2]} 34... Qf3+ {[%clk 0:00:18.2]} 35. Kg1 {[%clk
0:00:20.7]} 35... Qxg3+ {[%clk 0:00:18.8]} 0-1

[Event "Late-Titled-Tuesday-Blitz-January-23-2024"]
[Site "Chess.com"]
[Date "2024.01.23"]
[Round "9"]
[White "EsmeraldasAnderson03"]
[Black "cristiano78"]
[Result "0-1"]
[WhiteElo "2412"]
[BlackElo "2239"]
[TimeControl "180+1"]
[EndTime "15:42:05 PST"]
[Termination "cristiano78 won on time"]

1. d4 {[%clk 0:02:57.8]} 1... Nf6 {[%clk 0:02:59.3]} 2. c4 {[%clk 0:02:58.5]}
2... g6 {[%clk 0:02:57.6]} 3. Nc3 {[%clk 0:02:58.9]} 3... Bg7 {[%clk 0:02:57.5]}
4. e4 {[%clk 0:02:59.5]} 4... d6 {[%clk 0:02:57.8]} 5. Be2 {[%clk 0:03:00.2]}
5... O-O {[%clk 0:02:57.6]} 6. Be3 {[%clk 0:03:00.9]} 6... e5 {[%clk 0:02:55.2]}
7. d5 {[%clk 0:02:59.4]} 7... Nbd7 {[%clk 0:02:55.1]} 8. g4 {[%clk 0:03:00]}
8... Nc5 {[%clk 0:02:53.8]} 9. f3 {[%clk 0:02:59.7]} 9... a5 {[%clk 0:02:54.3]}
10. h4 {[%clk 0:02:59.4]} 10... h5 {[%clk 0:02:52.5]} 11. g5 {[%clk 0:02:59.6]}
11... Nh7 {[%clk 0:02:51]} 12. Qd2 {[%clk 0:02:59.2]} 12... f6 {[%clk
0:02:50.1]} 13. gxf6 {[%clk 0:02:54]} 13... Bxf6 {[%clk 0:02:50.4]} 14. O-O-O
{[%clk 0:02:54.1]} 14... Bxh4 {[%clk 0:02:49]} 15. Nh3 {[%clk 0:02:54.8]} 15...
Kh8 {[%clk 0:02:46]} 16. Rdg1 {[%clk 0:02:54.8]} 16... Rg8 {[%clk 0:02:36.9]}
17. f4 {[%clk 0:02:52.6]} 17... Bf6 {[%clk 0:02:32.7]} 18. fxe5 {[%clk 0:02:47]}
18... Bxe5 {[%clk 0:02:32]} 19. Nf4 {[%clk 0:02:47.5]} 19... Qf6 {[%clk
0:02:19.7]} 20. Bxh5 {[%clk 0:02:04.4]} 20... gxh5 {[%clk 0:02:14.2]} 21. Rxg8+
{[%clk 0:01:59.3]} 21... Kxg8 {[%clk 0:02:13.3]} 22. Nxh5 {[%clk 0:02:00]} 22...
Qf7 {[%clk 0:02:06.4]} 23. Bh6 {[%clk 0:01:35]} 23... Bd7 {[%clk 0:01:50.4]} 24.
Kb1 {[%clk 0:00:48.7]} 24... Kh8 {[%clk 0:01:47.5]} 25. Ne2 {[%clk 0:00:46.5]}
25... Nxe4 {[%clk 0:01:44.2]} 26. Qe3 {[%clk 0:00:44.7]} 26... Bf5 {[%clk
0:01:33.6]} 27. Ka1 {[%clk 0:00:44.6]} 27... Bg6 {[%clk 0:01:31.6]} 28. Nef4
{[%clk 0:00:39.6]} 28... Bf5 {[%clk 0:01:20.2]} 29. Rf1 {[%clk 0:00:14.7]} 29...
Rg8 {[%clk 0:01:04.4]} 30. a3 {[%clk 0:00:14.9]} 30... Nef6 {[%clk 0:00:44.3]}
31. Ng3 {[%clk 0:00:09.1]} 31... Ng4 {[%clk 0:00:39.3]} 32. Qf3 {[%clk
0:00:04.5]} 32... Nxh6 {[%clk 0:00:38.3]} 33. Ne6 {[%clk 0:00:02.1]} 33... Rxg3
{[%clk 0:00:34.7]} 34. Qf2 {[%clk 0:00:02]} 34... Qg6 {[%clk 0:00:27.6]} 0-1

[Event "Late-Titled-Tuesday-Blitz-January-23-2024"]
[Site "Chess.com"]
[Date "2024.01.23"]
[Round "9"]
[White "SanchezKelvin"]
[Black "Durarbayli"]
[Result "0-1"]
[WhiteElo "2578"]
[BlackElo "2862"]
[TimeControl "180+1"]
[EndTime "15:42:06 PST"]
[Termination "Durarbayli won on time"]

1. d4 {[%clk 0:02:44.1]} 1... Nf6 {[%clk 0:02:56.9]} 2. c4 {[%clk 0:02:44]} 2...
e6 {[%clk 0:02:57.2]} 3. Nf3 {[%clk 0:02:43.9]} 3... b6 {[%clk 0:02:57.4]} 4. g3
{[%clk 0:02:43.8]} 4... Ba6 {[%clk 0:02:55.6]} 5. Qc2 {[%clk 0:02:43.9]} 5... c5
{[%clk 0:02:53.7]} 6. d5 {[%clk 0:02:43.5]} 6... exd5 {[%clk 0:02:54.1]} 7. cxd5
{[%clk 0:02:44.4]} 7... Nxd5 {[%clk 0:02:41.8]} 8. Qe4+ {[%clk 0:02:40.6]} 8...
Ne7 {[%clk 0:02:26.8]} 9. Qxa8 {[%clk 0:02:15.9]} 9... Nec6 {[%clk 0:02:24.7]}
10. Ne5 {[%clk 0:02:04.1]} 10... Nxe5 {[%clk 0:02:08.9]} 11. Qe4 {[%clk
0:02:03.3]} 11... Nc6 {[%clk 0:01:18.4]} 12. f4 {[%clk 0:01:48.6]} 12... Bb7
{[%clk 0:00:59.3]} 13. Rg1 {[%clk 0:01:19.2]} 13... d5 {[%clk 0:00:55.1]} 14.
Qe3 {[%clk 0:01:13.6]} 14... c4 {[%clk 0:00:55.3]} 15. fxe5 {[%clk 0:00:59.6]}
15... Bc5 {[%clk 0:00:50.8]} 16. Qf3 {[%clk 0:00:50.7]} 16... Bxg1 {[%clk
0:00:32]} 17. e3 {[%clk 0:00:50.4]} 17... Nxe5 {[%clk 0:00:21.4]} 18. Qg2 {[%clk
0:00:42.9]} 18... Qf6 {[%clk 0:00:20.1]} 19. Be2 {[%clk 0:00:39.4]} 19... O-O
{[%clk 0:00:17]} 20. Qxg1 {[%clk 0:00:35.7]} 20... d4 {[%clk 0:00:17.6]} 21.
exd4 {[%clk 0:00:32]} 21... Nd3+ {[%clk 0:00:15.4]} 22. Bxd3 {[%clk 0:00:24.5]}
22... cxd3 {[%clk 0:00:15.7]} 23. Be3 {[%clk 0:00:22]} 23... Qf3 {[%clk
0:00:13.1]} 24. Qf2 {[%clk 0:00:18.2]} 24... Qh1+ {[%clk 0:00:13.2]} 25. Qg1
{[%clk 0:00:15.2]} 25... Qf3 {[%clk 0:00:13]} 26. Qf2 {[%clk 0:00:15.8]} 26...
Qh1+ {[%clk 0:00:10.1]} 27. Kd2 {[%clk 0:00:11.8]} 27... Rc8 {[%clk 0:00:08.8]}
28. Kxd3 {[%clk 0:00:03.5]} 28... Qe4+ {[%clk 0:00:03.5]} 29. Ke2 {[%clk
0:00:03.5]} 29... Ba6+ {[%clk 0:00:03.7]} 0-1